[Event "Titled Tuesday Blitz April 26 Late 2022"]
[White "Meduri, Aakaash"]
[Black "Leitao, Rafael"]
[WhiteFideId "2032252"]
[BlackFideId "2101246"]
[WhiteElo "2096"]
[BlackElo "2609"]
[Result "1-0"]
[Round "04"]
[TimeControl "180+1"]
[Date "2022.04.26"]
[WhiteClock "0:00:08"]
[BlackClock "0:00:14"]

1. d4 {[%clk 0:02:56]}  Nf6 {[%clk 0:02:57]} 2. Bf4 {[%clk 0:02:56]}  e6 {[%clk 0:02:55]} 3. e3 {[%clk 0:02:56]}  b6 {[%clk 0:02:54]} 4. Nf3 {[%clk 0:02:55]}  Bb7 {[%clk 0:02:54]} 5. Nbd2 {[%clk 0:02:55]}  Be7 {[%clk 0:02:55]} 6. a4 {[%clk 0:02:55]}  a6 {[%clk 0:02:52]} 7. h3 {[%clk 0:02:55]}  O-O {[%clk 0:02:52]} 8. Bd3 {[%clk 0:02:55]}  c5 {[%clk 0:02:52]} 9. c3 {[%clk 0:02:55]}  Nc6 {[%clk 0:02:51]} 10. O-O {[%clk 0:02:55]}  d5 {[%clk 0:02:51]} 11. Ne5 {[%clk 0:02:53]}  Nxe5 {[%clk 0:02:48]} 12. Bxe5 {[%clk 0:02:53]}  c4 {[%clk 0:02:31]} 13. Bc2 {[%clk 0:02:52]}  Ne4 {[%clk 0:02:30]} 14. f3 {[%clk 0:02:30]}  Nxd2 {[%clk 0:02:26]} 15. Qxd2 {[%clk 0:02:31]}  Bd6 {[%clk 0:02:17]} 16. Bxd6 {[%clk 0:02:15]}  Qxd6 {[%clk 0:02:17]} 17. e4 {[%clk 0:02:12]}  dxe4 {[%clk 0:02:14]} 18. fxe4 {[%clk 0:02:12]}  e5 {[%clk 0:02:12]} 19. Rad1 {[%clk 0:02:05]}  Rad8 {[%clk 0:02:11]} 20. d5 {[%clk 0:01:58]}  b5 {[%clk 0:02:07]} 21. Qf2 {[%clk 0:01:52]}  f6 {[%clk 0:02:04]} 22. axb5 {[%clk 0:01:37]}  axb5 {[%clk 0:02:02]} 23. Ra1 {[%clk 0:01:37]}  Ra8 {[%clk 0:01:28]} 24. Qe3 {[%clk 0:01:30]}  f5 {[%clk 0:01:14]} 25. Rxa8 {[%clk 0:01:03]}  Bxa8 {[%clk 0:01:14]} 26. Qa7 {[%clk 0:00:48]}  f4 {[%clk 0:01:03]} 27. Bd1 {[%clk 0:00:42]}  Qb8 {[%clk 0:00:54]} 28. Qd7 {[%clk 0:00:37]}  Qb6+ {[%clk 0:00:53]} 29. Kh1 {[%clk 0:00:35]}  Rd8 {[%clk 0:00:52]} 30. Qe7 {[%clk 0:00:33]}  Qd6 {[%clk 0:00:49]} 31. Qa7 {[%clk 0:00:33]}  Qb8 {[%clk 0:00:47]} 32. Qe7 {[%clk 0:00:33]}  Qd6 {[%clk 0:00:45]} 33. Qa7 {[%clk 0:00:32]}  Qb8 {[%clk 0:00:45]} 34. Qc5 {[%clk 0:00:31]}  Rc8 {[%clk 0:00:43]} 35. Qe7 {[%clk 0:00:30]}  Qc7 {[%clk 0:00:42]} 36. Qe6+ {[%clk 0:00:29]}  Kh8 {[%clk 0:00:39]} 37. Bg4 {[%clk 0:00:30]}  Rd8 {[%clk 0:00:37]} 38. Ra1 {[%clk 0:00:30]}  Qb8 {[%clk 0:00:25]} 39. Ra6 {[%clk 0:00:25]}  b4 {[%clk 0:00:26]} 40. cxb4 {[%clk 0:00:19]}  c3 {[%clk 0:00:23]} 41. bxc3 {[%clk 0:00:17]}  Qb5 {[%clk 0:00:23]} 42. Ra1 {[%clk 0:00:17]}  Qd3 {[%clk 0:00:20]} 43. Qxe5 {[%clk 0:00:16]}  Rf8 {[%clk 0:00:18]} 44. Ra7 {[%clk 0:00:13]}  Qf1+ {[%clk 0:00:18]} 45. Kh2 {[%clk 0:00:13]}  Rg8 {[%clk 0:00:18]} 46. Rf7 {[%clk 0:00:10]}  Qe1 {[%clk 0:00:14]} 47. Rxf4 {[%clk 0:00:08]} 1-0


[Site "https://www.chess.com"]

[Event "Titled Tuesday Blitz April 26 Late 2022"]
[White "Moiseenko, Alexander"]
[Black "Barria Zuniga, Daniel"]
[WhiteFideId "14102560"]
[BlackFideId "3400816"]
[WhiteElo "2577"]
[BlackElo "2414"]
[Result "1-0"]
[Round "04"]
[TimeControl "180+1"]
[Date "2022.04.26"]
[WhiteClock "0:01:36"]
[BlackClock "0:01:12"]

1. d4 {[%clk 0:02:56]}  d5 {[%clk 0:02:55]} 2. c4 {[%clk 0:02:56]}  c6 {[%clk 0:02:52]} 3. Nc3 {[%clk 0:02:56]}  Nf6 {[%clk 0:02:52]} 4. Nf3 {[%clk 0:02:55]}  dxc4 {[%clk 0:02:52]} 5. a4 {[%clk 0:02:55]}  Na6 {[%clk 0:02:52]} 6. e4 {[%clk 0:02:54]}  Bg4 {[%clk 0:02:48]} 7. Bxc4 {[%clk 0:02:54]}  e6 {[%clk 0:02:44]} 8. O-O {[%clk 0:02:51]}  Nb4 {[%clk 0:02:44]} 9. Be3 {[%clk 0:02:50]}  Be7 {[%clk 0:02:42]} 10. h3 {[%clk 0:02:46]}  Bh5 {[%clk 0:02:41]} 11. Qe2 {[%clk 0:02:40]}  O-O {[%clk 0:02:39]} 12. Rad1 {[%clk 0:02:34]}  Qa5 {[%clk 0:02:18]} 13. Bf4 {[%clk 0:02:24]}  Rad8 {[%clk 0:02:15]} 14. g4 {[%clk 0:02:18]}  Bg6 {[%clk 0:02:13]} 15. Ne5 {[%clk 0:02:18]}  c5 {[%clk 0:01:59]} 16. Bb5 {[%clk 0:01:39]}  Na6 {[%clk 0:01:14]} 17. Bxa6 {[%clk 0:01:36]}  Qxa6 {[%clk 0:01:11]} 18. Qxa6 {[%clk 0:01:36]}  bxa6 {[%clk 0:01:12]} 19. Nc6 {[%clk 0:01:36]}  Rde8 {[%clk 0:01:12]} 20. Nxe7+ {[%clk 0:01:36]}  Rxe7 {[%clk 0:01:12]} 21. Bd6 {[%clk 0:01:36]} 1-0


[Site "https://www.chess.com"]

[Event "Titled Tuesday Blitz April 26 Late 2022"]
[White "Moraes, Nelson da Silva"]
[Black "Lin, Dachey"]
[WhiteFideId "2140772"]
[BlackFideId "2029650"]
[WhiteElo "2515"]
[BlackElo "2796"]
[Result "0-1"]
[Round "04"]
[TimeControl "180+1"]
[Date "2022.04.26"]
[WhiteClock "0:00:06"]
[BlackClock "0:01:37"]

1. e4 {[%clk 0:00:42]}  g6 {[%clk 0:02:58]} 2. d4 {[%clk 0:00:42]}  Bg7 {[%clk 0:02:58]} 3. Nc3 {[%clk 0:00:43]}  d5 {[%clk 0:02:59]} 4. Nf3 {[%clk 0:00:44]}  dxe4 {[%clk 0:02:59]} 5. Nxe4 {[%clk 0:00:45]}  Nd7 {[%clk 0:02:59]} 6. Ng3 {[%clk 0:00:45]}  Ngf6 {[%clk 0:02:59]} 7. Bd3 {[%clk 0:00:45]}  c6 {[%clk 0:03:00]} 8. O-O {[%clk 0:00:46]}  O-O {[%clk 0:03:00]} 9. h3 {[%clk 0:00:46]}  c5 {[%clk 0:03:00]} 10. Re1 {[%clk 0:00:44]}  cxd4 {[%clk 0:03:00]} 11. Nxd4 {[%clk 0:00:45]}  Nc5 {[%clk 0:03:00]} 12. Bf1 {[%clk 0:00:44]}  e5 {[%clk 0:02:35]} 13. Nf3 {[%clk 0:00:42]}  e4 {[%clk 0:02:33]} 14. Qxd8 {[%clk 0:00:39]}  Rxd8 {[%clk 0:02:33]} 15. Nd2 {[%clk 0:00:30]}  Re8 {[%clk 0:02:20]} 16. Bb5 {[%clk 0:00:30]}  Re7 {[%clk 0:02:17]} 17. Nb3 {[%clk 0:00:27]}  Nfd7 {[%clk 0:02:06]} 18. Bg5 {[%clk 0:00:25]}  f6 {[%clk 0:02:04]} 19. Bc4+ {[%clk 0:00:25]}  Kh8 {[%clk 0:01:58]} 20. Be3 {[%clk 0:00:25]}  Nxb3 {[%clk 0:01:53]} 21. Bxb3 {[%clk 0:00:26]}  f5 {[%clk 0:01:53]} 22. c3 {[%clk 0:00:25]}  Ne5 {[%clk 0:01:52]} 23. Rad1 {[%clk 0:00:20]}  Bd7 {[%clk 0:01:49]} 24. Bg5 {[%clk 0:00:19]}  Ree8 {[%clk 0:01:49]} 25. Bf4 {[%clk 0:00:18]}  Nd3 {[%clk 0:01:48]} 26. Rf1 {[%clk 0:00:16]}  Bc6 {[%clk 0:01:47]} 27. Bc1 {[%clk 0:00:17]}  a5 {[%clk 0:01:46]} 28. a4 {[%clk 0:00:16]}  Nc5 {[%clk 0:01:46]} 29. Bd5 {[%clk 0:00:14]}  Bxa4 {[%clk 0:01:45]} 30. Rde1 {[%clk 0:00:13]}  Rad8 {[%clk 0:01:44]} 31. Ba2 {[%clk 0:00:12]}  Nd3 {[%clk 0:01:44]} 32. Re2 {[%clk 0:00:12]}  Bb5 {[%clk 0:01:42]} 33. c4 {[%clk 0:00:11]}  Bc6 {[%clk 0:01:42]} 34. Bg5 {[%clk 0:00:11]}  Rd7 {[%clk 0:01:41]} 35. Rd2 {[%clk 0:00:10]}  h6 {[%clk 0:01:40]} 36. Be3 {[%clk 0:00:08]}  f4 {[%clk 0:01:41]} 37. Rxd3 {[%clk 0:00:06]}  exd3 {[%clk 0:01:39]} 38. Bxf4 {[%clk 0:00:06]}  d2 {[%clk 0:01:40]} 39. Rd1 {[%clk 0:00:06]}  Red8 {[%clk 0:01:39]} 40. Kf1 {[%clk 0:00:05]}  Bxb2 {[%clk 0:01:38]} 41. Bb1 {[%clk 0:00:06]}  Ba4 {[%clk 0:01:37]} 0-1


[Site "https://www.chess.com"]

[Event "Titled Tuesday Blitz April 26 Late 2022"]
[White "Muradli, Mahammad"]
[Black "Araujo Sanchez, Josue"]
[WhiteFideId "13409301"]
[BlackFideId "6416896"]
[WhiteElo "2611"]
[BlackElo "2339"]
[Result "1-0"]
[Round "04"]
[TimeControl "180+1"]
[Date "2022.04.26"]
[WhiteClock "0:00:06"]
[BlackClock "0:00:17"]

1. Nf3 {[%clk 0:03:00]}  c5 {[%clk 0:02:58]} 2. c4 {[%clk 0:03:01]}  Nc6 {[%clk 0:02:58]} 3. Nc3 {[%clk 0:03:00]}  Nf6 {[%clk 0:02:57]} 4. g3 {[%clk 0:03:01]}  g6 {[%clk 0:02:56]} 5. Bg2 {[%clk 0:03:01]}  Bg7 {[%clk 0:02:56]} 6. O-O {[%clk 0:03:01]}  O-O {[%clk 0:02:57]} 7. d4 {[%clk 0:02:57]}  cxd4 {[%clk 0:02:58]} 8. Nxd4 {[%clk 0:02:57]}  Qb6 {[%clk 0:02:57]} 9. Nb3 {[%clk 0:02:56]}  d6 {[%clk 0:02:55]} 10. Be3 {[%clk 0:02:52]}  Qd8 {[%clk 0:02:41]} 11. Qd2 {[%clk 0:02:45]}  Ne5 {[%clk 0:02:22]} 12. c5 {[%clk 0:02:42]}  Nc4 {[%clk 0:02:21]} 13. Qd4 {[%clk 0:02:40]}  Nxe3 {[%clk 0:02:16]} 14. Qxe3 {[%clk 0:02:41]}  dxc5 {[%clk 0:02:15]} 15. Nxc5 {[%clk 0:02:41]}  Ng4 {[%clk 0:02:03]} 16. Qf4 {[%clk 0:02:34]}  Qb6 {[%clk 0:01:57]} 17. N3a4 {[%clk 0:02:21]}  Qb5 {[%clk 0:01:55]} 18. Rac1 {[%clk 0:02:18]}  Ne5 {[%clk 0:01:45]} 19. Rfd1 {[%clk 0:02:11]}  Bg4 {[%clk 0:01:32]} 20. Rd2 {[%clk 0:02:03]}  Rad8 {[%clk 0:01:24]} 21. Rxd8 {[%clk 0:02:01]}  Rxd8 {[%clk 0:01:23]} 22. Nxb7 {[%clk 0:02:02]}  Rd4 {[%clk 0:01:21]} 23. Qxd4 {[%clk 0:01:29]}  Nf3+ {[%clk 0:01:19]} 24. Bxf3 {[%clk 0:01:27]}  Bxd4 {[%clk 0:01:20]} 25. Bxg4 {[%clk 0:01:28]}  Qxa4 {[%clk 0:01:19]} 26. Bf3 {[%clk 0:01:24]}  Qxa2 {[%clk 0:01:16]} 27. b4 {[%clk 0:01:24]}  Qb2 {[%clk 0:01:14]} 28. Rc4 {[%clk 0:01:23]}  Bb6 {[%clk 0:01:12]} 29. Nc5 {[%clk 0:01:14]}  e6 {[%clk 0:01:03]} 30. Kg2 {[%clk 0:01:11]}  Qa2 {[%clk 0:00:58]} 31. Rc3 {[%clk 0:01:08]}  Qa1 {[%clk 0:00:56]} 32. Rc4 {[%clk 0:01:02]}  Qa2 {[%clk 0:00:50]} 33. Rc3 {[%clk 0:01:02]}  Qd2 {[%clk 0:00:50]} 34. Rc4 {[%clk 0:00:49]}  h5 {[%clk 0:00:49]} 35. Nd3 {[%clk 0:00:46]}  Kg7 {[%clk 0:00:46]} 36. h4 {[%clk 0:00:41]}  Qa2 {[%clk 0:00:45]} 37. Rc8 {[%clk 0:00:32]}  Qa1 {[%clk 0:00:45]} 38. Rb8 {[%clk 0:00:21]}  Qd4 {[%clk 0:00:45]} 39. Rb7 {[%clk 0:00:18]}  Qd6 {[%clk 0:00:41]} 40. b5 {[%clk 0:00:12]}  e5 {[%clk 0:00:32]} 41. Bc6 {[%clk 0:00:12]}  Qe6 {[%clk 0:00:32]} 42. e3 {[%clk 0:00:09]}  Qf5 {[%clk 0:00:31]} 43. Nb4 {[%clk 0:00:07]}  e4 {[%clk 0:00:28]} 44. Nd5 {[%clk 0:00:06]}  Qf3+ {[%clk 0:00:26]} 45. Kg1 {[%clk 0:00:06]}  Bc5 {[%clk 0:00:22]} 46. Nf4 {[%clk 0:00:06]}  Bxe3 {[%clk 0:00:20]} 47. fxe3 {[%clk 0:00:06]}  Qxe3+ {[%clk 0:00:20]} 48. Kg2 {[%clk 0:00:06]}  Qd2+ {[%clk 0:00:20]} 49. Kh3 {[%clk 0:00:07]}  Qe1 {[%clk 0:00:19]} 50. Kg2 {[%clk 0:00:06]}  Qd2+ {[%clk 0:00:18]} 51. Kh3 {[%clk 0:00:06]}  Qd3 {[%clk 0:00:18]} 52. Nxd3 {[%clk 0:00:05]}  exd3 {[%clk 0:00:17]} 53. Rd7 {[%clk 0:00:06]} 1-0


[Site "https://www.chess.com"]

[Event "Titled Tuesday Blitz April 26 Late 2022"]
[White "Naroditsky, Daniel"]
[Black "Jacobson, Aaron"]
[WhiteFideId "2026961"]
[BlackFideId "2089912"]
[WhiteElo "2608"]
[BlackElo "2265"]
[Result "1-0"]
[Round "04"]
[TimeControl "180+1"]
[Date "2022.04.26"]
[WhiteClock "0:02:04"]
[BlackClock "0:00:02"]

1. d4 {[%clk 0:03:00]}  d5 {[%clk 0:02:58]} 2. Nc3 {[%clk 0:03:00]}  c5 {[%clk 0:02:59]} 3. e4 {[%clk 0:03:00]}  dxe4 {[%clk 0:02:56]} 4. d5 {[%clk 0:03:00]}  Nf6 {[%clk 0:02:56]} 5. Bf4 {[%clk 0:02:56]}  a6 {[%clk 0:02:53]} 6. f3 {[%clk 0:02:56]}  exf3 {[%clk 0:02:44]} 7. Nxf3 {[%clk 0:02:57]}  g6 {[%clk 0:02:43]} 8. Qd2 {[%clk 0:02:55]}  Bg7 {[%clk 0:02:43]} 9. O-O-O {[%clk 0:02:55]}  O-O {[%clk 0:02:43]} 10. Bh6 {[%clk 0:02:55]}  b5 {[%clk 0:02:31]} 11. Bxg7 {[%clk 0:02:37]}  Kxg7 {[%clk 0:02:32]} 12. h4 {[%clk 0:02:38]}  h5 {[%clk 0:02:19]} 13. Ng5 {[%clk 0:02:34]}  Bf5 {[%clk 0:02:01]} 14. Bd3 {[%clk 0:02:33]}  Bxd3 {[%clk 0:01:54]} 15. Qxd3 {[%clk 0:02:33]}  Qd6 {[%clk 0:01:46]} 16. Kb1 {[%clk 0:02:29]}  Nbd7 {[%clk 0:01:40]} 17. Rhe1 {[%clk 0:02:25]}  Nb6 {[%clk 0:01:05]} 18. Nce4 {[%clk 0:02:21]}  c4 {[%clk 0:00:51]} 19. Qd4 {[%clk 0:02:15]}  Qxd5 {[%clk 0:00:03]} 20. Qxb6 {[%clk 0:02:15]}  Qf5 {[%clk 0:00:03]} 21. Nc3 {[%clk 0:02:07]}  Rab8 {[%clk 0:00:03]} 22. Qe3 {[%clk 0:02:04]}  b4 {[%clk 0:00:03]} 23. Nce4 {[%clk 0:02:04]}  b3 {[%clk 0:00:03]} 24. axb3 {[%clk 0:02:03]}  cxb3 {[%clk 0:00:04]} 25. cxb3 {[%clk 0:02:04]}  Rb4 {[%clk 0:00:03]} 26. Rd4 {[%clk 0:02:02]}  Rb7 {[%clk 0:00:03]} 27. Qd3 {[%clk 0:01:56]}  Rfb8 {[%clk 0:00:04]} 28. Nxf6 {[%clk 0:01:55]}  exf6 {[%clk 0:00:03]} 29. Qxf5 {[%clk 0:01:54]}  gxf5 {[%clk 0:00:03]} 30. Nh3 {[%clk 0:01:55]}  Rxb3 {[%clk 0:00:03]} 31. Re2 {[%clk 0:01:56]}  a5 {[%clk 0:00:03]} 32. Nf4 {[%clk 0:01:56]}  Kh6 {[%clk 0:00:03]} 33. Rd6 {[%clk 0:01:57]}  a4 {[%clk 0:00:03]} 34. Rxf6+ {[%clk 0:01:57]}  Kh7 {[%clk 0:00:04]} 35. Ka2 {[%clk 0:01:55]}  a3 {[%clk 0:00:04]} 36. bxa3 {[%clk 0:01:56]}  Rg3 {[%clk 0:00:04]} 37. Rxf7+ {[%clk 0:01:56]}  Kh8 {[%clk 0:00:04]} 38. Rxf5 {[%clk 0:01:56]}  Kh7 {[%clk 0:00:04]} 39. Rxh5+ {[%clk 0:01:57]}  Kg7 {[%clk 0:00:05]} 40. Rg5+ {[%clk 0:01:58]}  Rxg5 {[%clk 0:00:05]} 41. hxg5 {[%clk 0:01:59]}  Kh7 {[%clk 0:00:06]} 42. g6+ {[%clk 0:01:59]}  Kh6 {[%clk 0:00:06]} 43. Re7 {[%clk 0:01:59]}  Rf8 {[%clk 0:00:06]} 44. g7 {[%clk 0:01:59]}  Rc8 {[%clk 0:00:06]} 45. a4 {[%clk 0:01:59]}  Kh7 {[%clk 0:00:06]} 46. Nd5 {[%clk 0:02:00]}  Rc2+ {[%clk 0:00:06]} 47. Kb3 {[%clk 0:02:00]}  Rf2 {[%clk 0:00:07]} 48. a5 {[%clk 0:02:00]}  Kg8 {[%clk 0:00:07]} 49. a6 {[%clk 0:02:00]}  Kh7 {[%clk 0:00:07]} 50. a7 {[%clk 0:02:01]}  Rf1 {[%clk 0:00:04]} 51. a8=Q {[%clk 0:02:01]}  Rb1+ {[%clk 0:00:04]} 52. Kc2 {[%clk 0:02:01]}  Kh6 {[%clk 0:00:01]} 53. Qh8+ {[%clk 0:02:02]}  Kg5 {[%clk 0:00:02]} 54. g8=Q+ {[%clk 0:02:03]}  Kf5 {[%clk 0:00:02]} 55. Qe5# {[%clk 0:02:04]} 1-0


[Site "https://www.chess.com"]

[Event "Titled Tuesday Blitz April 26 Late 2022"]
[White "Needleman, Alejandro"]
[Black "Sernecki, Franciszek"]
[WhiteFideId "100730"]
[BlackFideId "1169297"]
[WhiteElo "2336"]
[BlackElo "2165"]
[Result "0-1"]
[Round "04"]
[TimeControl "180+1"]
[Date "2022.04.26"]
[WhiteClock "0:00:20"]
[BlackClock "0:00:09"]

1. e4 {[%clk 0:03:00]}  c6 {[%clk 0:02:56]} 2. d4 {[%clk 0:02:59]}  d5 {[%clk 0:02:56]} 3. Nc3 {[%clk 0:03:00]}  dxe4 {[%clk 0:02:56]} 4. Nxe4 {[%clk 0:03:01]}  Nd7 {[%clk 0:02:56]} 5. Bc4 {[%clk 0:03:00]}  Ngf6 {[%clk 0:02:56]} 6. Nxf6+ {[%clk 0:03:00]}  Nxf6 {[%clk 0:02:55]} 7. c3 {[%clk 0:03:00]}  Qc7 {[%clk 0:02:51]} 8. Nf3 {[%clk 0:02:59]}  Bf5 {[%clk 0:02:47]} 9. O-O {[%clk 0:02:58]}  e6 {[%clk 0:02:47]} 10. Ne5 {[%clk 0:02:57]}  Bd6 {[%clk 0:02:47]} 11. Bf4 {[%clk 0:02:57]}  O-O {[%clk 0:02:46]} 12. Qe2 {[%clk 0:02:51]}  c5 {[%clk 0:02:32]} 13. dxc5 {[%clk 0:02:43]}  Qxc5 {[%clk 0:02:31]} 14. Bb3 {[%clk 0:02:21]}  Rfd8 {[%clk 0:02:03]} 15. h3 {[%clk 0:02:18]}  a5 {[%clk 0:01:21]} 16. a4 {[%clk 0:02:15]}  Nd5 {[%clk 0:01:10]} 17. Bxd5 {[%clk 0:02:10]}  Qxd5 {[%clk 0:01:05]} 18. Rfd1 {[%clk 0:02:10]}  Qc5 {[%clk 0:00:58]} 19. Bg3 {[%clk 0:01:42]}  Qc7 {[%clk 0:00:54]} 20. Rd2 {[%clk 0:01:31]}  f6 {[%clk 0:00:43]} 21. Nf3 {[%clk 0:01:15]}  Bxg3 {[%clk 0:00:41]} 22. fxg3 {[%clk 0:01:16]}  Rxd2 {[%clk 0:00:37]} 23. Qxd2 {[%clk 0:01:12]}  Qxg3 {[%clk 0:00:37]} 24. Nd4 {[%clk 0:01:05]}  Bxh3 {[%clk 0:00:34]} 25. Qf2 {[%clk 0:00:46]}  Qxf2+ {[%clk 0:00:30]} 26. Kxf2 {[%clk 0:00:47]}  Bg4 {[%clk 0:00:30]} 27. Re1 {[%clk 0:00:45]}  Kf7 {[%clk 0:00:29]} 28. Nb3 {[%clk 0:00:40]}  e5 {[%clk 0:00:27]} 29. Re4 {[%clk 0:00:38]}  Bd7 {[%clk 0:00:21]} 30. Nc5 {[%clk 0:00:33]}  Bc6 {[%clk 0:00:21]} 31. Rc4 {[%clk 0:00:34]}  Rd8 {[%clk 0:00:18]} 32. Nxb7 {[%clk 0:00:33]}  Bxb7 {[%clk 0:00:15]} 33. Rc7+ {[%clk 0:00:33]}  Kg6 {[%clk 0:00:15]} 34. Rxb7 {[%clk 0:00:34]}  Rd2+ {[%clk 0:00:15]} 35. Kf3 {[%clk 0:00:33]}  f5 {[%clk 0:00:15]} 36. b4 {[%clk 0:00:32]}  Rd3+ {[%clk 0:00:12]} 37. Ke2 {[%clk 0:00:33]}  Rxc3 {[%clk 0:00:12]} 38. bxa5 {[%clk 0:00:29]}  Rc2+ {[%clk 0:00:12]} 39. Kf3 {[%clk 0:00:25]}  Rc3+ {[%clk 0:00:12]} 40. Ke2 {[%clk 0:00:24]}  Rc4 {[%clk 0:00:12]} 41. Rb5 {[%clk 0:00:21]}  e4 {[%clk 0:00:10]} 42. Rb6+ {[%clk 0:00:17]}  Kg5 {[%clk 0:00:10]} 43. Rb7 {[%clk 0:00:18]}  Kh6 {[%clk 0:00:09]} 44. a6 {[%clk 0:00:16]}  Rxa4 {[%clk 0:00:09]} 45. a7 {[%clk 0:00:17]}  Kg6 {[%clk 0:00:08]} 46. Rb6+ {[%clk 0:00:16]}  Kh5 {[%clk 0:00:08]} 47. Rb7 {[%clk 0:00:17]}  Kh6 {[%clk 0:00:05]} 48. Ke3 {[%clk 0:00:15]}  g5 {[%clk 0:00:04]} 49. g4 {[%clk 0:00:15]}  fxg4 {[%clk 0:00:04]} 50. Kf2 {[%clk 0:00:14]}  Kh5 {[%clk 0:00:04]} 51. Rxh7+ {[%clk 0:00:13]}  Kg6 {[%clk 0:00:05]} 52. Re7 {[%clk 0:00:14]}  Kf5 {[%clk 0:00:05]} 53. Rf7+ {[%clk 0:00:13]}  Ke6 {[%clk 0:00:06]} 54. Rb7 {[%clk 0:00:14]}  Ke5 {[%clk 0:00:06]} 55. Rg7 {[%clk 0:00:12]}  Kf6 {[%clk 0:00:03]} 56. Rb7 {[%clk 0:00:11]}  Ra3 {[%clk 0:00:03]} 57. Rb4 {[%clk 0:00:09]}  Kf5 {[%clk 0:00:04]} 58. Rb5+ {[%clk 0:00:09]}  Kf4 {[%clk 0:00:04]} 59. Rb7 {[%clk 0:00:10]}  Ra2+ {[%clk 0:00:04]} 60. Kf1 {[%clk 0:00:11]}  g3 {[%clk 0:00:04]} 61. Rf7+ {[%clk 0:00:10]}  Kg4 {[%clk 0:00:05]} 62. Kg1 {[%clk 0:00:10]}  e3 {[%clk 0:00:05]} 63. Re7 {[%clk 0:00:10]}  e2 {[%clk 0:00:03]} 64. Rxe2 {[%clk 0:00:09]}  Ra1+ {[%clk 0:00:04]} 65. Kg2 {[%clk 0:00:07]}  Rxa7 {[%clk 0:00:04]} 66. Rd2 {[%clk 0:00:08]}  Ra4 {[%clk 0:00:03]} 67. Re2 {[%clk 0:00:09]}  Rf4 {[%clk 0:00:04]} 68. Rd2 {[%clk 0:00:09]}  Rf2+ {[%clk 0:00:04]} 69. Rxf2 {[%clk 0:00:10]}  gxf2 {[%clk 0:00:05]} 70. Kxf2 {[%clk 0:00:10]}  Kh3 {[%clk 0:00:06]} 71. Kg1 {[%clk 0:00:10]}  g4 {[%clk 0:00:06]} 72. Kh1 {[%clk 0:00:11]}  g3 {[%clk 0:00:06]} 73. Kg1 {[%clk 0:00:12]}  g2 {[%clk 0:00:06]} 74. Kf2 {[%clk 0:00:12]}  Kh2 {[%clk 0:00:07]} 75. Kf3 {[%clk 0:00:13]}  g1=Q {[%clk 0:00:08]} 76. Kf4 {[%clk 0:00:14]}  Qd4+ {[%clk 0:00:08]} 77. Kf5 {[%clk 0:00:15]}  Kh3 {[%clk 0:00:09]} 78. Ke6 {[%clk 0:00:15]}  Kg4 {[%clk 0:00:09]} 79. Kf7 {[%clk 0:00:16]}  Kg5 {[%clk 0:00:09]} 80. Ke6 {[%clk 0:00:17]}  Kf4 {[%clk 0:00:08]} 81. Kf7 {[%clk 0:00:18]}  Qd6 {[%clk 0:00:09]} 82. Kg7 {[%clk 0:00:18]}  Kf5 {[%clk 0:00:09]} 83. Kh8 {[%clk 0:00:19]}  Kg6 {[%clk 0:00:08]} 84. Kg8 {[%clk 0:00:20]}  Qb8# {[%clk 0:00:09]} 0-1


[Site "https://www.chess.com"]

[Event "Titled Tuesday Blitz April 26 Late 2022"]
[White "Omariev, Maksim"]
[Black "Horcajuelo Rocamora, Martin"]
[WhiteFideId "4193423"]
[BlackFideId "24573027"]
[WhiteElo "2491"]
[BlackElo "1822"]
[Result "1-0"]
[Round "04"]
[TimeControl "180+1"]
[Date "2022.04.26"]
[WhiteClock "0:00:12"]
[BlackClock "0:01:38"]

1. g4 {[%clk 0:03:00]}  d5 {[%clk 0:02:54]} 2. Bg2 {[%clk 0:03:01]}  c6 {[%clk 0:02:54]} 3. h3 {[%clk 0:02:58]}  g6 {[%clk 0:02:54]} 4. d4 {[%clk 0:02:58]}  Bg7 {[%clk 0:02:54]} 5. c3 {[%clk 0:02:56]}  Nf6 {[%clk 0:02:54]} 6. Nf3 {[%clk 0:02:53]}  Nbd7 {[%clk 0:02:54]} 7. Bf4 {[%clk 0:02:53]}  O-O {[%clk 0:02:53]} 8. Nbd2 {[%clk 0:02:53]}  Re8 {[%clk 0:02:51]} 9. Ne5 {[%clk 0:02:50]}  Nxe5 {[%clk 0:02:51]} 10. Bxe5 {[%clk 0:02:51]}  Nd7 {[%clk 0:02:49]} 11. Bxg7 {[%clk 0:02:49]}  Kxg7 {[%clk 0:02:50]} 12. f4 {[%clk 0:02:47]}  Qc7 {[%clk 0:02:50]} 13. e3 {[%clk 0:02:46]}  Nf8 {[%clk 0:02:46]} 14. h4 {[%clk 0:02:41]}  f6 {[%clk 0:02:38]} 15. g5 {[%clk 0:02:33]}  Bf5 {[%clk 0:02:27]} 16. Qe2 {[%clk 0:02:28]}  b5 {[%clk 0:02:24]} 17. Rh2 {[%clk 0:01:47]}  Kg8 {[%clk 0:02:23]} 18. Nf3 {[%clk 0:01:38]}  Bg4 {[%clk 0:02:20]} 19. Qd2 {[%clk 0:01:21]}  e5 {[%clk 0:02:09]} 20. dxe5 {[%clk 0:01:16]}  Bxf3 {[%clk 0:02:08]} 21. Bxf3 {[%clk 0:01:16]}  fxe5 {[%clk 0:02:08]} 22. O-O-O {[%clk 0:01:16]}  Ne6 {[%clk 0:01:59]} 23. h5 {[%clk 0:00:51]}  exf4 {[%clk 0:01:57]} 24. hxg6 {[%clk 0:00:52]}  hxg6 {[%clk 0:01:58]} 25. Rdh1 {[%clk 0:00:38]}  fxe3 {[%clk 0:01:56]} 26. Rh8+ {[%clk 0:00:23]}  Kf7 {[%clk 0:01:56]} 27. R1h7+ {[%clk 0:00:24]}  Ng7 {[%clk 0:01:56]} 28. Bxd5+ {[%clk 0:00:25]}  Ke7 {[%clk 0:01:43]} 29. Qxe3+ {[%clk 0:00:15]}  Kd6 {[%clk 0:01:42]} 30. Qg3+ {[%clk 0:00:13]}  Kxd5 {[%clk 0:01:38]} 31. Qxc7 {[%clk 0:00:12]} 1-0


[Site "https://www.chess.com"]

[Event "Titled Tuesday Blitz April 26 Late 2022"]
[White "Oparin, Grigoriy"]
[Black "Fedoseev, Vladimir"]
[WhiteFideId "24125890"]
[BlackFideId "24130737"]
[WhiteElo "2665"]
[BlackElo "2726"]
[Result "1-0"]
[Round "04"]
[TimeControl "180+1"]
[Date "2022.04.26"]
[WhiteClock "0:01:15"]
[BlackClock "0:00:29"]

1. d4 {[%clk 0:03:00]}  Nf6 {[%clk 0:02:30]} 2. Nf3 {[%clk 0:02:31]}  e6 {[%clk 0:02:30]} 3. c4 {[%clk 0:02:31]}  b6 {[%clk 0:02:30]} 4. g3 {[%clk 0:02:31]}  Ba6 {[%clk 0:02:29]} 5. b3 {[%clk 0:02:31]}  d5 {[%clk 0:02:27]} 6. Bg2 {[%clk 0:02:31]}  c6 {[%clk 0:02:26]} 7. Nbd2 {[%clk 0:02:24]}  Nbd7 {[%clk 0:02:26]} 8. Bb2 {[%clk 0:02:24]}  Be7 {[%clk 0:02:26]} 9. O-O {[%clk 0:02:25]}  O-O {[%clk 0:02:26]} 10. Qc2 {[%clk 0:02:24]}  Rc8 {[%clk 0:02:26]} 11. e4 {[%clk 0:02:24]}  c5 {[%clk 0:02:25]} 12. exd5 {[%clk 0:02:15]}  exd5 {[%clk 0:02:23]} 13. Qf5 {[%clk 0:02:13]}  dxc4 {[%clk 0:02:20]} 14. Nxc4 {[%clk 0:02:12]}  Bxc4 {[%clk 0:02:06]} 15. bxc4 {[%clk 0:02:13]}  cxd4 {[%clk 0:02:06]} 16. Nxd4 {[%clk 0:02:12]}  Rc5 {[%clk 0:02:07]} 17. Qf4 {[%clk 0:01:55]}  Rxc4 {[%clk 0:01:37]} 18. Rac1 {[%clk 0:01:55]}  Ra4 {[%clk 0:01:37]} 19. Qf5 {[%clk 0:01:39]}  Nb8 {[%clk 0:01:32]} 20. Rfd1 {[%clk 0:01:36]}  Qd7 {[%clk 0:01:09]} 21. Qc2 {[%clk 0:01:35]}  Rxa2 {[%clk 0:00:49]} 22. Nc6 {[%clk 0:01:35]}  Qe8 {[%clk 0:00:47]} 23. Nxe7+ {[%clk 0:01:34]}  Qxe7 {[%clk 0:00:46]} 24. Bxf6 {[%clk 0:01:35]}  Qa3 {[%clk 0:00:44]} 25. Be7 {[%clk 0:01:27]}  Rxc2 {[%clk 0:00:39]} 26. Bxa3 {[%clk 0:01:27]}  Rxc1 {[%clk 0:00:39]} 27. Rxc1 {[%clk 0:01:28]}  Re8 {[%clk 0:00:37]} 28. Bd5 {[%clk 0:01:21]}  Na6 {[%clk 0:00:34]} 29. Bb7 {[%clk 0:01:15]}  Nb8 {[%clk 0:00:29]} 30. Rc7 {[%clk 0:01:15]} 1-0


[Site "https://www.chess.com"]